bitfinex/quotes_ETHUSD_20241225
["timestamp","ask_amount","ask_price","bid_price","bid_amount"]
[1735092220200,2.87769,3475.1,3474.0,2.87849]
[1735092220432,3.0,3475.1,3474.0,2.87849]
[1735092220634,0.55,3475.4,3474.0,2.87849]
[1735092220635,3.0,3475.2,3474.0,2.87849]
[1735092220784,3.0,3475.1,3474.0,2.87849]
[1735092220985,3.0,3475.1,3474.1,0.4051366]
[1735092222342,2.87763,3475.1,3474.1,0.4051366]
[1735092223885,0.55,3475.4,3474.2,0.02877988]
[1735092224132,2.87746,3475.3,3474.2,2.90711988]
[1735092224304,5.87753,3475.2,3474.1,0.4051366]
[1735092224523,5.87753,3475.2,3474.2,0.33124265]
[1735092224840,2.87769,3475.1,3474.2,0.33124265]
[1735092225128,2.8777,3475.0,3474.1,0.4051366]
[1735092225298,3.0,3475.4,3474.1,0.4051366]
[1735092225637,2.87736,3475.5,3474.3,2.87827]
[1735092225839,3.0,3475.4,3474.3,2.87827]
[1735092226344,3.0,3475.7,3474.1,0.4051366]
[1735092226486,3.0,3475.2,3474.1,3.2835666]
[1735092226687,0.587711,3475.6,3474.1,0.4051366]
[1735092226887,2.74865715,3475.2,3473.4,2.74865715]
[1735092227231,2.74865715,3474.5,3473.2,1.1923794]
[1735092227530,0.55,3474.3,3472.9,1.1923794]
[1735092227752,2.87872,3473.8,3472.9,1.1923794]
[1735092228907,2.87872,3473.8,3472.6,11.72962]
[1735092229107,2.87872,3473.8,3472.7,1.172962]
[1735092229338,2.87872,3473.8,3472.7,4.052562]
[1735092229894,3.0,3474.0,3473.0,2.87932]
[1735092230128,2.87851,3474.1,3473.0,2.87932]
[1735092230843,0.55,3474.3,3472.7,1.172962]
[1735092231046,0.55,3474.1,3472.7,1.172962]
[1735092231396,2.87884,3473.7,3472.8,0.8297]
[1735092233091,0.8198,3474.0,3472.8,0.8297]
[1735092233290,3.6984,3474.0,3472.8,0.8297]
[1735092233494,0.8198,3474.0,3472.9,1.3760982]
[1735092233830,2.87866,3473.9,3472.9,1.3760982]
[1735092234236,0.8198,3474.0,3472.9,1.3760982]
[1735092234560,2.87871,3473.8,3472.9,1.3760982]
[1735092235698,3.0,3474.2,3472.9,1.3760982]
[1735092235859,3.0,3474.2,3473.2,0.8297]
[1735092237014,0.8198,3475.1,3473.6,0.8297]
[1735092237179,2.87779,3474.9,3473.7,3.70841]
[1735092237365,2.87779,3474.9,3473.8,0.8297]
[1735092237565,2.87791,3474.8,3474.0,0.8297]
[1735092237814,2.8777,3475.0,3474.0,0.8297]
[1735092239916,0.55,3475.4,3474.0,0.8297]
[1735092240083,2.87775,3475.0,3474.0,0.8297]
[1735092241717,2.87778,3474.9,3474.0,0.8297]
[1735092242021,2.87778,3474.9,3474.1,0.4079181]
[1735092242671,2.87762,3475.1,3474.2,0.8297]
[1735092242875,3.58990043,3475.7,3474.3,0.8297]
[1735092243197,5.87738,3475.4,3474.4,0.8297]
[1735092243402,5.87738,3475.4,3474.5,0.370792]
[1735092243726,5.87738,3475.4,3474.6,0.8297]
[1735092244024,2.87722,3475.6,3474.8,0.8297]
[1735092244596,2.8773,3475.5,3474.8,0.8297]
[1735092244906,0.8198,3475.9,3474.8,0.8297]
[1735092245129,3.8198,3475.9,3474.8,1.2375592]
[1735092245271,2.8767,3476.2,3475.0,0.7802]
[1735092245472,2.87679,3476.1,3475.1,0.7802]
[1735092245725,1.1918602,3476.4,3475.2,0.7802]
[1735092245910,4.0683902,3476.4,3475.4,0.7802]
[1735092246117,2.87653,3476.4,3475.5,1.250757]
[1735092247714,2.87622,3476.8,3475.7,0.7802]
[1735092247918,3.67267,3477.2,3475.7,0.7802]
[1735092248215,0.7968,3477.2,3475.7,0.7802]
[1735092248510,2.87639,3476.6,3475.7,0.7802]
[1735092250894,2.87646,3476.5,3475.7,0.7802]
[1735092251221,2.87685,3476.1,3475.7,0.7802]
[1735092251410,2.87659,3476.4,3475.7,0.7802]
[1735092251589,3.0,3476.7,3475.7,0.7802]
[1735092251919,2.87697,3475.9,3475.4,0.7802]
[1735092252121,0.55,3476.2,3475.4,0.7802]
[1735092252336,2.87712,3475.7,3475.4,0.7802]
[1735092253420,3.0,3475.6,3474.9,0.7802]
[1735092253595,2.87739,3475.4,3474.9,0.7802]
[1735092255321,2.87722,3475.6,3474.9,0.7802]
[1735092255481,2.87714,3475.7,3474.9,1.74322]
[1735092256524,3.0,3476.1,3474.9,1.74322]
[1735092256735,3.0,3476.1,3474.9,0.7802]
[1735092256736,2.8772,3475.7,3474.9,0.7802]
[1735092257211,2.87686,3476.0,3474.9,0.7802]
[1735092257526,2.87723,3475.6,3474.9,0.7802]
[1735092258284,2.87686,3476.0,3474.9,0.7802]
[1735092258600,3.0,3476.1,3475.1,0.7802]
[1735092258820,2.87672,3476.2,3475.3,0.7802]
[1735092259216,2.87654,3476.4,3475.3,0.7802]
[1735092259533,1.9886602,3476.6,3475.7,0.7802]
[1735092259534,1.1918602,3476.6,3475.7,0.7802]
[1735092259729,1.1918602,3476.6,3475.8,1.145933]
[1735092260086,2.87612,3476.9,3475.8,1.145933]
[1735092260288,1.1918602,3477.0,3475.8,1.145933]
[1735092260534,2.87637,3476.6,3475.8,0.7802]
[1735092261992,2.8762,3476.9,3475.8,0.7802]
[1735092262235,2.87629,3476.7,3475.8,0.7802]
[1735092263035,2.87612,3476.9,3475.9,0.02876581]
[1735092263241,3.0,3477.0,3476.0,2.87683]
[1735092263395,3.0,3477.0,3476.1,1.10335958]
[1735092263597,2.87607,3477.0,3476.1,1.10335958]
[1735092263903,2.8761,3477.0,3476.1,1.10335958]
[1735092264127,2.87609,3477.0,3476.1,1.10335958]
[1735092264945,2.87613,3476.9,3476.1,1.10335958]
[1735092265999,3.0,3477.0,3476.1,1.10335958]
[1735092266216,5.87608,3477.0,3476.1,0.8128]
[1735092266427,2.87608,3477.0,3476.1,0.8128]
[1735092268303,2.87608,3477.0,3476.1,0.78748952]
[1735092269208,0.55,3477.6,3476.0,2.87686]
[1735092269407,2.87562,3477.5,3476.0,2.87686]
[1735092269639,2.87562,3477.5,3475.8,8.85]
[1735092269640,2.876,3477.1,3475.8,8.85]
[1735092269838,2.8764,3476.6,3475.8,8.85]
[1735092270147,2.87646,3476.5,3475.4,3.57651429]
[1735092270956,2.87646,3476.5,3475.5,0.02876749]
[1735092271152,2.87646,3476.5,3475.4,3.57651429]
[1735092271449,2.87646,3476.5,3475.6,0.8199]
[1735092271647,0.55,3477.1,3475.6,0.8199]
[1735092271819,2.87631,3476.7,3475.8,0.8199]
[1735092272148,2.87637,3476.6,3475.8,0.8199]
[1735092272452,2.87645,3476.5,3475.8,0.8199]
[1735092272957,3.164095,3476.5,3475.8,0.8199]
[1735092273364,2.87604,3477.0,3475.8,0.8199]
[1735092273553,2.87631,3476.7,3475.8,0.8199]
[1735092274194,2.87642,3476.6,3475.8,0.8199]
[1735092274920,2.87624,3476.8,3475.9,0.8199]
[1735092275065,3.0,3477.3,3476.0,0.8199]
[1735092275267,3.0,3477.1,3476.3,0.8202]
[1735092276097,3.40635036,3477.3,3476.4,0.8202]
[1735092276299,2.87571,3477.4,3476.6,0.8202]
[1735092276494,4.0673402,3477.7,3476.7,0.02876108]
[1735092276806,2.3837204,3478.0,3476.1,11.72674]
[1735092276807,2.87532,3477.9,3476.8,2.8762]
[1735092277023,3.36540802,3477.8,3476.9,0.8202]
[1735092277379,0.8328,3477.7,3476.6,2.87635]
[1735092277703,3.36540802,3477.8,3476.7,0.8202]
[1735092278083,0.48999802,3477.8,3476.7,0.8202]
[1735092278309,2.87547,3477.7,3476.7,0.8202]
[1735092278512,2.87547,3477.7,3476.8,0.8202]
[1735092279387,0.55,3477.7,3476.8,0.8202]
[1735092279596,2.87571,3477.4,3476.8,0.8202]
[1735092280001,2.87555,3477.6,3476.8,0.8202]
[1735092280524,3.0,3477.7,3476.8,0.8202]
[1735092281033,2.87547,3477.7,3476.8,0.8202]
[1735092281232,2.87547,3477.7,3476.9,0.8202]
[1735092282110,0.48999802,3477.8,3476.9,0.8202]
[1735092282500,2.87581,3477.3,3476.9,0.8202]
[1735092282700,0.55,3477.7,3476.9,0.8202]
[1735092282925,2.87596,3477.1,3476.9,0.8202]
[1735092283434,2.8758,3477.3,3476.9,0.8202]
[1735092284314,2.87555,3477.6,3476.9,0.8202]
[1735092284521,2.87578,3477.4,3476.9,0.8202]
[1735092292703,2.87603,3477.1,3476.9,0.8202]
[1735092292933,2.87604,3477.0,3476.3,0.7689]
[1735092293137,2.87619,3476.9,3476.3,0.7689]
[1735092293339,3.55,3477.2,3476.3,0.7689]
[1735092293647,2.87644,3476.6,3475.8,0.7689]
[1735092293807,2.87675,3476.2,3475.8,0.7689]
[1735092295030,3.55,3476.8,3475.8,0.7689]
[1735092295233,3.0,3476.4,3475.8,0.7689]
[1735092296040,2.8765,3476.5,3475.8,0.7689]
[1735092297147,3.0,3476.6,3475.8,0.7689]
[1735092297357,3.0,3476.6,3475.8,1.13639276]
[1735092298251,2.87629,3476.7,3475.9,0.7689]
[1735092298483,3.0,3476.8,3475.9,0.7689]
[1735092299977,5.87621,3476.8,3475.9,0.7689]
[1735092300563,5.87621,3476.8,3475.9,1.133499]
[1735092300767,2.8763,3476.7,3475.9,1.133499]
[1735092301543,2.87614,3476.9,3475.9,0.364599]
[1735092301744,3.43621,3477.1,3476.0,0.797665]
[1735092301966,3.43621,3477.1,3476.2,0.7689]
[1735092301967,2.87598,3477.1,3476.2,0.7689]
[1735092302277,1.1918602,3477.2,3476.4,0.7689]
[1735092302463,1.1918602,3477.3,3476.6,0.7689]
[1735092303878,2.87576,3477.4,3476.6,0.7689]
[1735092305814,0.76251202,3477.4,3476.6,0.7689]
[1735092306106,2.87647,3476.5,3476.1,0.7722]
[1735092306617,2.8763,3476.7,3476.1,0.7722]
[1735092307607,2.87642,3476.6,3476.1,0.7722]
[1735092308154,0.287642,3476.5,3475.8,0.7722]
[1735092308473,2.87696,3475.9,3475.4,1.20053335]
[1735092309359,2.87696,3475.9,3475.2,0.7722]
[1735092309558,1.1918602,3476.3,3475.2,0.7722]
[1735092309754,3.42678,3476.2,3475.2,0.7722]
[1735092309953,3.42678,3476.2,3475.2,1.49613226]
[1735092310493,2.87699,3475.9,3475.2,1.49613226]
[1735092311077,2.8772,3475.6,3475.2,0.7722]
[1735092311275,0.766,3475.9,3474.8,1.97273335]
[1735092311495,2.87762,3475.1,3474.8,1.97273335]
[1735092312421,2.87801,3474.7,3474.1,0.7722]
[1735092312596,5.87753,3475.2,3474.1,0.7722]
[1735092312906,2.8778,3474.9,3474.1,0.7722]
[1735092313060,2.8778,3474.9,3474.1,0.8009829]
[1735092313253,2.8778,3474.9,3474.1,1.46908153]
[1735092313489,2.8778,3474.9,3474.1,1.44029863]
[1735092313880,2.8778,3474.9,3474.1,1.46908028]
[1735092314051,5.87759,3475.2,3474.1,1.44029863]
[1735092314255,2.87759,3475.2,3474.2,0.7722]
[1735092314542,2.87745,3475.3,3474.4,0.7722]
[1735092315613,2.87745,3475.3,3474.4,0.80097875]
[1735092315912,2.74539997,3475.4,3474.1,0.7722]
[1735092316220,3.57586328,3474.8,3473.7,0.7722]
[1735092316425,2.87811,3474.5,3473.7,0.7722]
[1735092317070,2.87818,3474.5,3473.7,0.7722]
[1735092317662,2.87821,3474.4,3473.7,0.7722]
[1735092317864,0.55,3474.6,3473.7,0.7722]
[1735092318224,0.55,3474.6,3473.4,1.80080002]
[1735092318225,2.87877,3473.7,3473.4,2.57300002]
[1735092318522,2.8792,3473.2,3472.9,1.36125715]
[1735092318992,2.87902,3473.4,3472.9,1.36125715]
[1735092319155,1.316,3473.6,3472.9,1.36125715]
[1735092319361,2.87919,3473.2,3472.9,1.36125715]
[1735092320797,1.316,3473.6,3472.9,1.36125715]
[1735092321112,2.87903,3473.4,3472.9,1.36125715]
[1735092321564,2.87903,3473.4,3472.9,0.7722]
[1735092323598,3.8245,3474.4,3473.0,0.8253]
[1735092323797,3.0,3474.2,3473.0,0.8253]
[1735092323967,2.87866,3473.9,3473.0,0.8253]
[1735092324167,2.87869,3473.8,3473.0,0.8253]
[1735092324712,2.87853,3474.0,3473.0,0.8253]
[1735092326691,2.87832,3474.3,3473.2,0.8253]
[1735092327213,2.87846,3474.1,3473.2,0.8253]
[1735092327515,2.87846,3474.1,3473.2,1.18237]
[1735092328990,2.8786,3474.0,3473.2,1.18237]
[1735092329191,2.87861,3473.9,3473.2,0.8253]
[1735092331815,2.87861,3473.9,3473.3,0.07324978]
[1735092332017,2.87845,3474.1,3473.4,0.8253]
[1735092332362,2.87852,3474.0,3473.5,0.07464714]
[1735092333129,0.55,3474.3,3473.5,0.07464714]
[1735092333130,2.87835,3474.3,3473.5,0.07464714]
[1735092333714,0.8245,3474.4,3473.5,0.07464714]
[1735092333932,2.87836,3474.2,3473.5,0.07464714]
[1735092334126,2.87872,3473.8,3473.5,0.07464714]
[1735092334331,9.99874997,3473.6,3473.5,0.07464714]
[1735092334514,2.87914,3473.3,3473.0,0.8253]
[1735092334933,9.99874997,3473.6,3472.2,2.87993]
[1735092334934,2.87934,3473.1,3472.2,0.7923]
[1735092335407,2.87937,3473.0,3472.3,0.0623168]
[1735092335648,3.55,3473.5,3472.3,0.0623168]
[1735092335841,0.55,3473.0,3472.3,0.0623168]
[1735092336032,0.55,3473.0,3471.3,10.05053335]
[1735092336033,2.87997,3472.3,3471.4,0.7923]
[1735092336345,2.87997,3472.3,3471.5,0.06264292]
[1735092337052,2.8803,3471.9,3471.5,0.06264292]
[1735092337449,2.8803,3471.9,3471.4,0.7923]
[1735092337747,2.87983,3472.5,3471.4,2.88062]
[1735092338047,3.0,3472.7,3471.7,0.7923]
[1735092338243,0.8141,3473.0,3471.7,0.7923]
[1735092338244,0.55,3472.9,3471.7,0.7923]
[1735092338430,2.87985,3472.4,3471.8,0.06339843]
[1735092338743,3.42943,3472.9,3471.8,0.06339843]
[1735092339048,2.87945,3472.9,3471.8,0.06339843]
[1735092339206,2.87953,3472.8,3471.9,0.37361184]
[1735092339406,2.8708933,3472.8,3471.9,0.37361184]
[1735092339744,2.8708933,3472.8,3472.0,0.06345525]
[1735092340516,2.8708933,3472.8,3472.1,0.7923]
[1735092340733,2.8708933,3472.8,3472.2,0.06342647]
[1735092340938,2.87942,3473.0,3472.2,0.06342647]
[1735092341118,3.0,3473.2,3472.2,0.06342647]
[1735092341525,3.0,3473.2,3472.3,1.08665065]
[1735092341718,3.0,3473.2,3472.4,0.06322076]
[1735092341920,2.87916,3473.3,3472.5,0.7923]
[1735092342110,2.87916,3473.3,3472.6,0.06319198]
[1735092344022,0.8141,3473.8,3472.6,0.06319198]
[1735092344222,2.87884,3473.7,3472.7,0.7923]
[1735092344533,2.87884,3473.7,3472.8,0.06316321]
[1735092344772,0.56995908,3474.4,3472.9,0.7923]
[1735092344959,0.8141,3474.9,3473.2,2.74539997]
[1735092345163,3.69192,3474.9,3473.5,0.7923]
[1735092345398,2.87805,3474.6,3473.6,0.367124]
[1735092345694,2.87805,3474.6,3473.6,0.43040584]
[1735092345920,0.58339363,3475.2,3474.0,2.87847]
[1735092345921,2.8776,3475.2,3474.0,2.87847]
[1735092346043,1.1918602,3475.3,3474.1,0.7923]
[1735092346242,2.87766,3475.1,3474.1,0.7923]
[1735092346606,1.1918602,3475.3,3474.2,0.06313282]
[1735092346901,2.87755,3475.2,3474.3,0.37338728]
[1735092347243,2.87755,3475.2,3474.4,0.06248819]
[1735092347606,2.87755,3475.2,3474.1,0.7923]
[1735092347809,2.87755,3475.2,3474.6,0.7923]
[1735092349345,3.0,3475.4,3474.7,0.06244508]
[1735092351062,2.87736,3475.4,3474.7,0.06244508]
[1735092351363,0.55,3475.3,3474.7,0.06244508]
[1735092351520,2.87786,3474.8,3474.7,0.06244508]
[1735092351698,2.74539997,3475.2,3474.1,0.8247]
[1735092351907,2.87803,3474.6,3474.1,0.8247]
[1735092352152,2.87803,3474.6,3474.2,0.06092636]
[1735092352541,2.87803,3474.6,3474.1,0.8247]
[1735092352710,2.87786,3474.9,3474.1,0.8247]
[1735092352911,4.082952,3474.9,3474.1,0.8247]
[1735092353106,1.205092,3474.9,3474.1,0.8247]
[1735092353312,2.87786,3474.8,3474.2,0.06110871]
[1735092353611,2.87829,3474.3,3474.1,0.8247]
[1735092354029,2.87829,3474.3,3473.3,0.8247]
[1735092354229,2.87829,3474.3,3473.3,2.654632]
[1735092354464,2.87829,3474.3,3473.4,0.06137192]
[1735092355447,1.205092,3474.9,3473.5,0.8247]
[1735092355664,1.205092,3474.9,3473.8,0.8247]
[1735092355665,2.87794,3474.7,3473.8,0.8247]
[1735092356002,2.87794,3474.7,3473.9,0.06139693]
[1735092356131,3.25531044,3474.7,3473.9,0.06139693]
[1735092356534,0.37737044,3474.7,3473.9,0.06139693]
[1735092356837,0.55,3475.0,3473.9,0.06139693]
[1735092357042,2.87812,3474.5,3473.9,0.06139693]
[1735092357776,3.0,3474.7,3473.9,0.06139693]
[1735092357918,2.87826,3474.4,3473.9,0.06139693]
[1735092359122,3.0,3475.0,3473.9,0.06139693]
[1735092359322,2.87804,3474.6,3473.8,0.8247]
[1735092359581,2.87804,3474.6,3473.9,0.06137983]
[1735092360373,3.0,3474.7,3473.9,0.06137983]
[1735092360582,3.0,3475.0,3474.0,0.8247]
[1735092360583,2.87771,3475.0,3474.0,0.8247]
[1735092360738,0.55,3475.1,3474.0,0.8247]
[1735092360921,0.55,3474.9,3474.1,0.06138528]
[1735092361964,2.87813,3474.5,3474.0,0.8247]
[1735092362265,2.8782,3474.4,3474.0,0.8247]
[1735092362468,2.87836,3474.2,3474.1,0.06167594]
[1735092362670,6.166196,3474.2,3474.1,0.06167594]
[1735092362965,6.166196,3474.2,3473.4,0.8247]
[1735092363160,2.87844,3474.1,3473.4,0.8247]
[1735092363318,2.87844,3474.1,3473.5,0.06176221]
[1735092366684,3.0,3474.4,3473.5,0.06176221]
[1735092366969,3.0,3474.2,3473.5,0.06176221]
[1735092367951,3.55,3474.7,3473.5,0.06176221]
[1735092368166,2.87839,3474.2,3473.5,0.06176221]
[1735092369434,3.55,3474.5,3473.5,0.06176221]
[1735092369665,4.3067,3474.3,3473.5,0.06176221]
[1735092369878,4.18555,3473.6,3473.5,0.06176221]
[1735092370140,4.18555,3473.6,3472.5,0.8191]
[1735092370141,1.69269037,3473.6,3472.5,0.8191]
[1735092370380,2.87952,3472.8,3472.6,0.05197885]
[1735092371036,3.0,3473.4,3472.6,0.05197885]
[1735092371255,0.55,3473.3,3472.6,0.05197885]
[1735092371493,0.64072605,3473.2,3472.6,0.05197885]
[1735092371695,2.87935,3473.1,3472.6,0.05197885]
[1735092373101,2.87954,3472.8,3472.6,0.05197885]
[1735092373519,2.87954,3472.8,3472.5,0.8191]
[1735092374282,2.87937,3473.0,3472.5,0.8191]
[1735092374690,2.87937,3473.0,3472.6,0.05321885]
[1735092374892,2.87943,3472.9,3472.6,0.05321885]
[1735092375097,2.87943,3472.9,3472.6,0.00124]
[1735092375579,0.55574602,3473.0,3472.6,0.00124]
[1735092376235,3.64072605,3473.2,3472.6,0.00124]
[1735092376236,0.64072605,3473.2,3472.6,0.00124]
[1735092376382,3.64072605,3473.2,3472.6,0.00124]
[1735092376583,3.64072605,3473.2,3472.7,0.05284274]
[1735092376826,3.51991605,3473.2,3472.7,0.05284274]
[1735092377021,2.87927,3473.1,3472.7,0.05284274]
[1735092377327,3.28626961,3473.1,3472.7,0.05284274]
[1735092377933,2.87952,3472.8,3472.7,0.05284274]
[1735092378112,3.42952,3472.8,3472.6,0.00124]
[1735092378315,6.4296,3472.7,3472.6,0.00124]
[1735092379009,7.1863,3472.7,3472.6,0.00124]
[1735092379209,7.72103678,3472.7,3472.6,0.00124]
[1735092382744,7.1863,3472.7,3472.6,0.00124]
[1735092382958,2.8796,3472.7,3472.6,0.00124]
[1735092384050,5.8796,3472.7,3472.6,0.00124]
[1735092384973,6.4296,3472.7,3472.6,0.00124]
[1735092389545,2.8796,3472.7,3472.6,0.00124]
[1735092389743,2.87943,3473.0,3472.6,0.00124]
[1735092390048,2.87952,3472.8,3472.7,0.05258376]
[1735092390520,2.87952,3472.8,3472.6,0.00124]
[1735092391829,6.67637,3473.5,3472.6,0.00124]
[1735092392030,2.87919,3473.2,3472.6,0.00124]
[1735092392527,2.87919,3473.2,3472.7,0.05258376]
[1735092392914,3.0,3473.2,3472.7,0.05258376]
[1735092393118,3.0,3473.5,3472.8,0.7925]
[1735092393311,3.0,3473.4,3472.8,0.7925]
[1735092393520,3.0,3473.4,3472.9,0.05255499]
[1735092393760,3.0,3473.4,3472.8,0.7925]
[1735092394018,3.0,3473.4,3472.9,0.05255499]
[1735092394400,3.0,3473.4,3472.8,0.7925]
[1735092394632,3.0,3473.4,3473.0,0.05254061]
[1735092394833,3.0,3473.4,3472.8,0.7925]
[1735092394834,2.87895,3473.5,3472.9,0.05255499]
[1735092395104,2.87902,3473.4,3473.1,0.05252622]
[1735092395430,2.87902,3473.4,3472.8,0.7925]
[1735092395635,2.87902,3473.4,3473.2,0.05251184]
[1735092395851,2.87902,3473.4,3472.8,0.7925]
[1735092396010,2.87902,3473.4,3473.3,0.05249746]
[1735092396350,2.87902,3473.4,3472.8,0.7925]
[1735092396704,2.87902,3473.4,3472.9,0.05255499]
[1735092397102,2.87902,3473.4,3472.8,0.7925]
[1735092397420,2.87902,3473.4,3472.9,0.05255499]
[1735092397615,2.87902,3473.4,3472.8,0.7925]
[1735092397816,2.87902,3473.4,3473.0,0.05254061]
[1735092398143,2.87902,3473.4,3472.9,0.05255499]
[1735092398297,2.87902,3473.4,3473.1,0.05252622]
[1735092398502,2.87902,3473.4,3472.8,0.7925]
[1735092399058,2.87902,3473.4,3472.9,0.05255499]
[1735092399355,2.87902,3473.4,3472.8,0.7925]
[1735092399704,2.87902,3473.4,3472.9,0.05255499]
[1735092400045,2.87902,3473.4,3472.8,0.7925]
[1735092400251,2.87902,3473.4,3473.0,0.05254061]
[1735092400435,2.87902,3473.4,3472.9,0.05197342]
[1735092400632,2.87902,3473.4,3473.1,0.05194466]
[1735092400942,2.87902,3473.4,3473.0,0.05195904]
[1735092401145,2.87902,3473.4,3472.8,0.7925]
[1735092401657,2.87902,3473.4,3472.9,0.05197342]
[1735092401860,2.87902,3473.4,3472.8,0.7925]
[1735092402004,2.87902,3473.4,3473.0,0.05195904]
[1735092402206,2.87902,3473.4,3472.8,0.7925]
[1735092402518,2.87902,3473.4,3473.1,0.05194466]
[1735092402725,2.87902,3473.4,3472.8,0.7925]
[1735092403108,2.87902,3473.4,3472.9,0.05197342]
[1735092403538,2.87902,3473.4,3472.8,0.7925]
[1735092403813,2.87902,3473.4,3472.9,0.05197342]
[1735092404226,2.87902,3473.4,3472.8,0.7925]
[1735092404450,2.87902,3473.4,3473.0,0.05195904]
[1735092404745,2.87902,3473.4,3472.9,0.05197342]
[1735092404947,2.87902,3473.4,3473.1,0.05194466]
[1735092405190,2.87902,3473.4,3473.2,0.05193027]
[1735092405594,2.87902,3473.4,3472.8,0.7925]
[1735092406003,4.1918602,3473.9,3472.8,0.7925]
[1735092406169,3.0,3473.7,3472.9,0.41883084]
[1735092406368,3.0,3473.7,3473.0,0.8197]
[1735092406583,2.87887,3473.6,3473.1,0.05146007]
[1735092409299,2.87861,3473.9,3473.1,0.05146007]
[1735092409471,3.0,3473.8,3473.1,0.05146007]
[1735092410282,3.0,3473.8,3473.2,0.8197]
[1735092410496,3.0,3473.8,3473.2,1.19475701]
[1735092410692,3.0,3473.8,3473.3,0.05132302]
[1735092411215,3.0,3473.8,3473.4,0.05108067]
[1735092411366,5.87875,3473.8,3473.2,0.8197]
[1735092411562,5.87875,3473.8,3473.3,0.05103806]
[1735092411807,2.87912,3473.3,3472.9,0.8153]
[1735092411966,2.87923,3473.2,3472.9,0.8153]
[1735092417208,2.87903,3473.4,3472.9,0.8153]
[1735092417735,2.87903,3473.4,3473.0,0.05104702]
[1735092418024,2.87903,3473.4,3472.9,0.8153]
[1735092418724,1.1918602,3473.6,3472.9,0.8153]
[1735092418897,4.0707202,3473.6,3472.9,0.8153]
[1735092419107,1.1918602,3473.6,3472.9,0.8153]
[1735092419414,1.1918602,3473.6,3473.0,0.42072979]
[1735092420327,2.879,3473.5,3473.0,0.42072979]
[1735092420504,2.879,3473.5,3473.0,0.05124079]
[1735092421411,4.1918602,3473.8,3473.0,0.05124079]
[1735092421618,2.87918,3473.3,3473.0,0.05124079]
[1735092422128,2.87921,3473.2,3473.0,0.05124079]
[1735092422312,3.8286,3473.5,3473.0,0.05124079]
[1735092422637,2.87928,3473.1,3472.6,0.81654]
[1735092422848,2.87944,3472.9,3472.6,0.81654]
[1735092423141,2.87952,3472.8,3472.7,0.05128965]
[1735092423340,3.7082,3472.7,3472.6,0.00124]
[1735092423544,6.7082,3472.7,3472.6,0.00124]
[1735092424448,7.92902,3472.7,3472.6,0.00124]
[1735092424642,8.89443012,3472.7,3472.6,0.00124]
[1735092424826,6.84501012,3472.7,3472.6,0.00124]
[1735092427407,7.61031012,3472.7,3472.6,0.00124]
[1735092427608,0.7653,3472.1,3471.2,0.7517]
[1735092428048,0.55,3472.0,3471.3,0.05149115]
[1735092428346,2.88068,3471.4,3471.3,0.05149115]
[1735092428704,2.88082,3471.3,3471.1,1.20053335]
[1735092428949,2.88082,3471.3,3470.8,0.7517]
[1735092429956,2.88086,3471.2,3470.8,0.7517]
[1735092430165,2.88069,3471.4,3470.8,0.7517]
[1735092431572,2.88085,3471.2,3470.4,0.7517]
[1735092431935,2.88068,3471.4,3470.5,2.7742111]
[1735092432161,2.88068,3471.4,3470.6,0.02880978]
[1735092432334,2.88068,3471.4,3470.7,0.7517]
[1735092432757,0.57077598,3472.0,3470.8,0.7517]
[1735092432921,0.57077598,3472.0,3470.5,2.74539997]
[1735092432922,0.7653,3471.3,3470.5,0.7517]
[1735092433117,2.88106,3471.0,3470.5,0.7517]
[1735092433423,3.64608,3471.3,3470.5,0.7517]
[1735092433622,2.88085,3471.2,3470.5,0.7517]
[1735092434260,2.8811,3470.9,3470.5,0.7517]
[1735092435191,2.88093,3471.1,3470.5,0.7517]
[1735092435595,3.7653,3471.6,3470.5,0.7517]
[1735092436884,3.0,3471.3,3470.5,0.7517]
[1735092437087,2.88075,3471.4,3470.5,2.74539997]
[1735092437392,0.7653,3471.6,3470.7,0.7517]
[1735092437393,3.0,3471.5,3470.7,0.7517]
[1735092437813,1.19444905,3471.7,3470.8,3.49709997]
[1735092438104,1.19444905,3471.7,3471.1,0.7517]
[1735092438600,2.88007,3472.2,3471.1,0.7517]
[1735092438753,2.8801,3472.1,3471.1,0.7517]
[1735092438954,2.8801,3472.1,3471.2,0.363271]
[1735092439615,4.07445905,3472.3,3471.3,0.78050369]
[1735092439904,1.19444905,3472.3,3471.4,0.7517]
[1735092440065,2.87986,3472.4,3471.4,0.7517]
[1735092440280,2.87986,3472.4,3471.5,2.3614101]
[1735092440661,1.19444905,3472.9,3471.7,0.8023]
[1735092440917,1.19444905,3472.9,3472.6,0.8023]
[1735092441267,1.19444905,3472.9,3472.7,0.05292462]
[1735092441463,1.19444905,3473.2,3472.7,0.05292462]
[1735092443026,1.19444905,3473.2,3472.8,0.36006246]
[1735092443172,1.19444905,3473.2,3472.8,0.41166665]
[1735092443531,2.87852,3474.0,3472.9,0.8023]
[1735092443663,2.87862,3473.9,3472.9,0.8023]
[1735092443862,2.87862,3473.9,3473.0,0.05157542]
[1735092444113,1.19444905,3474.2,3473.0,0.46092021]
[1735092444295,2.87855,3474.0,3473.0,0.46092021]
[1735092445217,2.87862,3473.9,3473.0,0.46092021]
[1735092445979,2.87877,3473.7,3473.0,0.05157542]
[1735092446310,2.87892,3473.6,3473.0,0.05157542]
[1735092446630,2.87899,3473.5,3472.9,0.8023]
[1735092447502,2.87903,3473.4,3472.9,0.8023]
[1735092448011,2.87903,3473.4,3473.0,0.05110804]
[1735092449722,0.7612,3473.7,3473.0,0.05110804]
[1735092449892,3.0,3473.7,3473.0,0.05110804]
[1735092450814,2.8789,3473.6,3473.0,0.05110804]
[1735092453951,0.663991,3473.7,3473.0,0.05110804]